bitfinex-derivatives/quotes_BTCF0:USTF0_20250320
["timestamp","ask_amount","ask_price","bid_price","bid_amount"]
[1742483480964,0.1165455,85836.0,85822.0,0.1318]
[1742483480965,0.1165631,85823.0,85822.0,0.1318]
[1742483481167,0.3608,85836.0,85822.0,0.1318]
[1742483481168,0.3608,85829.0,85826.0,0.0582789]
[1742483481374,0.1864,85835.0,85834.0,0.1165482]
[1742483482169,0.19625097,85835.0,85834.0,0.1165482]
[1742483482470,0.00017477,85843.0,85834.0,0.27]
[1742483482674,0.3608,85867.0,85842.0,0.3608]
[1742483482869,0.3886,85866.0,85865.0,0.1165061]
[1742483483070,0.52103248,85866.0,85865.0,0.1165061]
[1742483483271,0.1165075,85864.0,85863.0,0.1900938]
[1742483483470,0.20232778,85866.0,85865.0,0.1165061]
[1742483483773,4e-05,85869.0,85868.0,0.116502]
[1742483484179,4e-05,85869.0,85868.0,0.12669542]
[1742483484674,4e-05,85869.0,85868.0,0.32179542]
[1742483484879,0.00017477,85874.0,85873.0,0.1164952]
[1742483485080,0.01599751,85874.0,85873.0,0.2483352]
[1742483485277,4e-05,85878.0,85877.0,0.1164898]
[1742483485470,0.1164898,85877.0,85876.0,0.3838]
[1742483485774,0.0582417,85882.0,85878.0,0.1164871]
[1742483485972,0.3867,85881.0,85880.0,0.1164844]
[1742483486174,0.3867,85881.0,85880.0,0.3051844]
[1742483486365,4e-05,85883.0,85882.0,0.116483]
[1742483486569,4e-05,85883.0,85882.0,0.248283]
[1742483486770,0.11664856,85889.0,85888.0,0.1164749]
[1742483486771,0.00017466,85889.0,85888.0,0.1164749]
[1742483486971,0.00989676,85889.0,85888.0,0.1164749]
[1742483487371,0.00989676,85889.0,85888.0,0.3079749]
[1742483487573,0.00989676,85889.0,85888.0,0.31808223]
[1742483487880,0.0014,85911.0,85898.0,0.1164613]
[1742483487881,0.1164579,85901.0,85898.0,0.1164613]
[1742483488071,0.18184,85899.0,85898.0,1.7482613]
[1742483488277,0.2983,85899.0,85898.0,1.7482613]
[1742483488583,0.18184,85899.0,85898.0,1.7482613]
[1742483488873,0.18184,85899.0,85898.0,0.7930613]
[1742483489079,0.18184,85899.0,85898.0,0.6237613]
[1742483489375,0.18684,85899.0,85898.0,0.6247613]
[1742483489678,0.30326,85899.0,85898.0,0.6247613]
[1742483489869,0.30326,85899.0,85898.0,0.9855613]
[1742483490281,0.005,85899.0,85898.0,1.2355613]
[1742483490979,0.10260111,85903.0,85902.0,0.1164559]
[1742483491179,0.195,85902.0,85901.0,0.1164573]
[1742483491371,0.10260111,85903.0,85902.0,0.1164559]
[1742483491572,0.1164506,85906.0,85905.0,0.1164505]
[1742483491768,0.3114506,85906.0,85905.0,0.5005505]
[1742483491968,0.195,85906.0,85905.0,0.5005505]
[1742483492169,4e-05,85913.0,85906.0,0.1164505]
[1742483492576,4e-05,85913.0,85912.0,0.1164424]
[1742483492776,0.3792,85927.0,85925.0,0.1164247]
[1742483492981,0.3792,85927.0,85926.0,0.3171234]
[1742483492982,0.495622,85927.0,85926.0,0.3171234]
[1742483493280,0.10260111,85928.0,85927.0,0.116422]
[1742483493486,0.10260111,85928.0,85927.0,0.673322]
[1742483493785,0.0605822,85928.0,85927.0,1.001282]
[1742483494380,0.1901,85936.0,85935.0,0.1164112]
[1742483494573,0.1948,85938.0,85937.0,0.1164085]
[1742483495683,0.058184,85967.0,85937.0,0.5481]
[1742483495884,0.058184,85967.0,85953.0,0.1163868]
[1742483495885,0.1164255,85954.0,85953.0,0.1163868]
[1742483496182,0.1164255,85954.0,85953.0,0.4771868]
[1742483496380,0.4910255,85954.0,85953.0,0.1163868]
[1742483496773,0.18454,85954.0,85953.0,0.1163868]
[1742483496980,0.18454,85954.0,85953.0,0.3036868]
[1742483497178,4e-05,85954.0,85953.0,0.6644868]
[1742483497484,0.1845,85964.0,85963.0,0.1163733]
[1742483497680,0.1845,85964.0,85963.0,0.2480933]
[1742483498789,4e-05,85967.0,85966.0,0.1163692]
[1742483499580,0.2002,85982.0,85967.0,0.0581838]
[1742483499781,0.2002,85982.0,85981.0,0.1163489]
[1742483499981,0.3608,85993.0,85987.0,0.1163408]
[1742483500187,0.2002,85992.0,85987.0,0.1163408]
[1742483500382,0.1745165,85986.0,85985.0,0.1163432]
[1742483500581,0.0581716,85986.0,85985.0,0.1163432]
[1742483501176,0.1163462,85983.0,85980.0,0.00889139]
[1742483501384,0.3747219,85982.0,85981.0,0.13168]
[1742483501691,0.20987025,85982.0,85981.0,0.2480289]
[1742483501883,0.2002,85982.0,85981.0,0.2480289]
[1742483502079,0.3165476,85982.0,85981.0,0.2480289]
[1742483502479,0.1163423,85988.0,85987.0,0.1163368]
[1742483502681,0.1163435,85986.0,85985.0,0.1163427]
[1742483502985,0.1163421,85986.0,85985.0,0.1163427]
[1742483503190,0.1955,85987.0,85986.0,0.1163421]
[1742483503388,4e-05,85999.0,85998.0,0.1163259]
[1742483503583,0.1163646,85999.0,85998.0,0.2480059]
[1742483503791,0.3838,85999.0,85997.0,0.1163266]
[1742483504098,0.3838,85999.0,85996.0,0.1895]
[1742483504099,0.5001251,85999.0,85998.0,0.13164]
[1742483504389,0.5001251,85999.0,85998.0,0.1163259]
[1742483504692,0.1163286,85996.0,85995.0,0.13164]
[1742483504990,0.00982629,85996.0,85995.0,0.11633]
[1742483505377,0.00982629,85996.0,85995.0,0.30583]
[1742483505582,0.12615489,85996.0,85995.0,0.30583]
[1742483505780,0.12619033,85996.0,85995.0,0.30583]
[1742483505982,0.1163286,85996.0,85995.0,0.30583]
[1742483506288,0.0014,85999.0,85998.0,0.1163259]
[1742483506585,4e-05,85999.0,85998.0,0.1163259]
[1742483506781,0.105,86000.0,85999.0,0.1163246]
[1742483506983,0.105,86000.0,85999.0,0.2479246]
[1742483507285,0.23121688,86000.0,85999.0,0.1316]
[1742483507486,0.116334,85992.0,85991.0,0.1316]
[1742483507691,0.1163476,85982.0,85981.0,0.2068]
[1742483507883,0.1163453,85984.0,85983.0,0.1163441]
[1742483508078,0.01002688,85984.0,85983.0,0.1745193]
[1742483508284,0.01002688,85984.0,85983.0,0.3231462]
[1742483508684,0.1163503,85980.0,85979.0,0.00017445]
[1742483508888,0.0581798,85974.0,85964.0,0.5624]
[1742483509089,0.1163638,85971.0,85969.0,0.0581824]
[1742483509290,0.1163638,85971.0,85970.0,0.1163631]
[1742483509482,0.14277747,85971.0,85970.0,0.1163631]
[1742483509879,0.14277747,85971.0,85962.0,0.1316]
[1742483509880,0.44538996,85971.0,85961.0,0.1316]
[1742483510093,0.1163731,85964.0,85963.0,0.1163714]
[1742483510295,0.14276821,85964.0,85963.0,0.1163714]
[1742483510679,0.02639511,85964.0,85963.0,0.1163714]
[1742483510880,0.1163733,85963.0,85962.0,0.00017445]
[1742483511190,0.15332954,85963.0,85962.0,0.00017445]
[1742483511394,0.1787436,85963.0,85944.0,0.1316]
[1742483511594,0.1163836,85956.0,85953.0,0.0581929]
[1742483511786,0.1163855,85954.0,85953.0,0.0581929]
[1742483511980,0.1745872,85950.0,85949.0,0.1163922]
[1742483512189,0.08418797,85950.0,85949.0,0.1163922]
[1742483512392,0.10186196,85950.0,85949.0,0.1163922]
[1742483512691,0.10186196,85950.0,85948.0,0.00857535]
[1742483512692,0.1163922,85949.0,85948.0,0.00857535]
[1742483512892,0.02699247,85949.0,85946.0,0.1163955]
[1742483513086,0.02687995,85950.0,85949.0,0.1163922]
[1742483513286,0.04403012,85950.0,85949.0,0.1163922]
[1742483513594,0.04403012,85950.0,85949.0,0.3195922]
[1742483513794,0.04403012,85950.0,85949.0,0.5595922]
[1742483513795,0.00330725,85950.0,85949.0,0.5595922]
[1742483514095,0.01768583,85957.0,85956.0,0.1163828]
[1742483514395,4e-05,85967.0,85966.0,0.1163692]
[1742483514697,0.00136,85973.0,85972.0,0.1163611]
[1742483514884,0.3608,85992.0,85970.0,0.0581812]
[1742483514885,0.0581733,85983.0,85981.0,0.1163489]
[1742483515079,0.1163463,85983.0,85981.0,1.6163489]
[1742483515283,0.4771476,85982.0,85981.0,1.5]
[1742483515483,0.4771476,85982.0,85979.0,0.1316]
[1742483515484,0.1163503,85980.0,85979.0,0.1316]
[1742483515890,0.5353228,85982.0,85981.0,0.1163489]
[1742483516392,0.1163503,85980.0,85979.0,0.1897752]
[1742483516593,0.1163503,85980.0,85979.0,0.1316]
[1742483517490,0.005,85982.0,85979.0,0.1897752]
[1742483517692,0.1163503,85980.0,85979.0,0.1316]
[1742483517887,0.1243488,85982.0,85973.0,0.00017445]
[1742483517888,0.1163584,85974.0,85973.0,0.00017445]
[1742483518588,0.1163787,85959.0,85957.0,0.1316]
[1742483518787,0.1163787,85959.0,85958.0,0.47718]
[1742483519291,0.1163787,85959.0,85951.0,0.1316]
[1742483519292,0.004,85974.0,85951.0,0.1316]
[1742483519484,0.1163882,85952.0,85951.0,0.1316]
[1742483519799,0.1163882,85952.0,85951.0,0.2479895]
[1742483520386,0.01776976,85954.0,85953.0,0.1163868]
[1742483520590,0.00017445,85960.0,85953.0,0.1163868]
[1742483520591,0.00017445,85960.0,85953.0,0.058193]
[1742483520798,0.00017445,85960.0,85952.0,0.1943]
[1742483520799,0.1163868,85953.0,85952.0,0.1943]
[1742483520998,0.002,85959.0,85957.0,0.1163806]
[1742483521294,0.004,85959.0,85958.0,0.11638]
[1742483521496,0.004,85959.0,85958.0,0.67148]
[1742483521698,0.13156,85976.0,85965.0,0.058185]
[1742483521999,4e-05,85979.0,85978.0,0.116353]
[1742483522388,4e-05,85979.0,85978.0,0.310653]
[1742483522587,4e-05,85979.0,85978.0,0.1943]
[1742483522889,4e-05,85979.0,85978.0,0.310653]
[1742483523208,4e-05,85979.0,85975.0,0.3608]
[1742483523395,0.1163624,85971.0,85970.0,0.00017445]
[1742483523790,0.12759011,85971.0,85970.0,0.00017445]
[1742483524488,0.1163624,85971.0,85970.0,0.11653825]
[1742483524988,0.00939839,85971.0,85970.0,0.11653825]
[1742483525393,0.00939839,85971.0,85970.0,0.30813825]
[1742483525595,0.00939839,85971.0,85970.0,0.43969825]
[1742483525783,0.00939839,85971.0,85970.0,0.32333445]
[1742483525984,0.01899515,85971.0,85970.0,0.43969825]
[1742483526182,0.13535755,85971.0,85970.0,0.13173445]
[1742483526393,0.33315755,85971.0,85970.0,0.00017445]
[1742483526597,0.33515755,85971.0,85970.0,0.00017445]
[1742483526795,0.34641465,85971.0,85970.0,0.00017445]
[1742483527198,0.54551465,85971.0,85970.0,0.00017445]
[1742483527895,0.54351465,85971.0,85970.0,0.00017445]
[1742483528194,0.53425755,85971.0,85970.0,0.00017445]
[1742483528398,0.90633925,85971.0,85970.0,0.00017445]
[1742483528597,0.1163773,85960.0,85959.0,0.13156]
[1742483528796,0.11638,85958.0,85957.0,0.3608]
[1742483529002,0.11638,85958.0,85957.0,0.4771814]
[1742483529003,0.12577839,85958.0,85957.0,0.4771814]
[1742483529392,0.53677839,85958.0,85957.0,0.4771814]
[1742483529586,0.1163855,85954.0,85944.0,0.13156]
[1742483529792,0.1163895,85951.0,85950.0,0.4771909]
[1742483530098,0.01899515,85951.0,85950.0,0.4771909]
[1742483530294,0.01899515,85951.0,85950.0,0.8126509]
[1742483530489,0.0581832,85968.0,85965.0,0.1163706]
[1742483530797,0.1163719,85964.0,85963.0,0.3608]
[1742483531186,0.1163719,85964.0,85962.0,0.2039]
[1742483531386,0.5115733,85963.0,85962.0,0.2039]
[1742483531591,0.207,85963.0,85962.0,0.3202746]
[1742483531794,0.13722948,85968.0,85962.0,0.3202746]
[1742483531795,0.11654365,85966.0,85965.0,0.1163706]
[1742483532089,0.11654365,85966.0,85965.0,0.3055706]
[1742483532292,0.11654365,85966.0,85965.0,0.1892]
[1742483532492,0.11654365,85966.0,85965.0,0.3055706]
[1742483532694,0.1745674,85960.0,85958.0,0.13156]
[1742483532904,0.00217445,85966.0,85961.0,0.0581877]
[1742483533103,0.00217445,85966.0,85965.0,0.4771706]
[1742483533490,0.00217445,85966.0,85965.0,0.6663706]
[1742483533691,0.00217445,85966.0,85965.0,0.8606706]
[1742483533892,0.00017445,85966.0,85965.0,0.8606706]
[1742483534501,0.00117445,85966.0,85965.0,0.87104015]
[1742483535094,0.11754365,85966.0,85965.0,0.7443]
[1742483535293,0.30644365,85966.0,85965.0,0.7443]
[1742483535489,0.30644365,85966.0,85965.0,0.1943]
[1742483535798,0.30644365,85966.0,85958.0,0.13156]
[1742483535799,0.1163787,85959.0,85958.0,0.13156]
[1742483535999,0.0581858,85965.0,85953.0,0.52006]
[1742483536205,0.116382,85957.0,85955.0,0.0581919]
[1742483536499,0.1745697,85959.0,85957.0,0.1163803]
[1742483536699,0.0581897,85959.0,85958.0,0.50498]
[1742483536901,0.1163774,85960.0,85958.0,0.50498]
[1742483537102,0.1183787,85959.0,85958.0,0.1944]
[1742483537298,0.4932787,85959.0,85958.0,0.1944]
[1742483538000,0.4932787,85959.0,85949.0,0.36097445]
[1742483538001,0.1163909,85950.0,85949.0,0.36097445]
[1742483538189,0.1163909,85950.0,85949.0,0.55537445]
[1742483538399,0.4771909,85950.0,85949.0,0.19457445]
[1742483538590,0.8416909,85950.0,85949.0,0.19457445]
[1742483538802,0.8531094,85950.0,85949.0,0.00017445]
[1742483539004,0.5081351,85950.0,85949.0,0.11656665]
[1742483539189,0.0158257,85950.0,85949.0,0.62858665]
[1742483539391,0.13822948,85959.0,85958.0,0.11638]
[1742483539595,0.13822948,85959.0,85958.0,0.6087]
[1742483539995,0.13822948,85959.0,85958.0,2.7583]
[1742483540300,0.2376779,85976.0,85964.0,0.1163719]
[1742483540505,0.3608,85977.0,85971.0,0.1163624]
[1742483540697,0.1163496,85981.0,85971.0,0.2479224]
[1742483540897,4e-05,85984.0,85971.0,0.2479224]
[1742483540898,4e-05,85984.0,85983.0,0.1163462]
[1742483541399,4e-05,85984.0,85983.0,0.3155462]
[1742483541599,0.1163849,85984.0,85983.0,0.3155462]
[1742483541902,0.30188036,85984.0,85983.0,0.3155462]
[1742483542499,0.30188036,85984.0,85978.0,0.3608]
[1742483542500,0.1163516,85979.0,85978.0,0.3608]
[1742483542701,0.12583401,85979.0,85978.0,0.1847]
[1742483542902,0.12583401,85979.0,85975.0,0.00017445]
[1742483542903,0.1163557,85976.0,85975.0,0.00017445]
[1742483543105,0.12583811,85976.0,85975.0,0.00017445]
[1742483543307,0.49703811,85976.0,85975.0,0.00017445]
[1742483543502,0.50685964,85976.0,85975.0,0.00017445]
[1742483543903,0.50845353,85976.0,85975.0,0.00017445]
[1742483544108,0.51045353,85976.0,85975.0,0.00017445]
[1742483544305,0.51085196,85976.0,85975.0,0.00017445]
[1742483545213,0.51124979,85976.0,85975.0,0.00017445]
[1742483546009,0.50924979,85976.0,85975.0,0.00017445]
[1742483546307,0.1163922,85949.0,85948.0,0.00873591]
[1742483546508,0.12587461,85949.0,85948.0,0.32742]
[1742483546705,0.1163936,85948.0,85947.0,0.21651004]
[1742483546904,0.30627601,85948.0,85947.0,0.21651004]
[1742483547096,0.31609754,85948.0,85947.0,0.20764504]
[1742483547412,0.31848769,85948.0,85947.0,0.20764504]
[1742483547610,0.50108769,85948.0,85947.0,0.20764504]
[1742483547905,0.50108769,85948.0,85947.0,0.32403994]
[1742483547906,0.49908769,85948.0,85947.0,0.32403994]
[1742483548311,0.20429409,85948.0,85947.0,0.32403994]
[1742483548508,0.32068769,85948.0,85947.0,0.1173949]
[1742483548899,0.32068769,85948.0,85947.0,0.2989949]
[1742483549098,0.20429409,85948.0,85947.0,0.2989949]
[1742483549305,0.32068769,85948.0,85947.0,0.2989949]
[1742483549607,0.20429409,85948.0,85947.0,0.2999949]
[1742483549813,0.32068769,85948.0,85947.0,0.2999949]
[1742483550005,0.33657163,85948.0,85947.0,0.2999949]
[1742483550600,0.03757803,85948.0,85947.0,0.2999949]
[1742483551207,0.02169409,85948.0,85947.0,0.2999949]
[1742483551607,0.02181635,85948.0,85947.0,0.2999949]
[1742483551812,0.2422828,85969.0,85955.0,0.1163841]
[1742483551813,0.1163775,85960.0,85955.0,0.1163841]
[1742483552011,0.1163775,85960.0,85955.0,0.6087041]
[1742483552210,0.1163775,85960.0,85955.0,2.1087041]
[1742483552514,0.1745629,85962.0,85955.0,2.1087041]
[1742483552705,0.1163768,85961.0,85955.0,2.1087041]
[1742483553010,0.00117445,85956.0,85955.0,2.1087041]
[1742483553219,4e-05,85966.0,85965.0,0.1163706]
[1742483553415,0.1163733,85963.0,85962.0,0.3608]
[1742483553615,4e-05,85966.0,85955.0,0.49232]
[1742483553616,0.1163828,85956.0,85955.0,0.13152]
[1742483553911,0.1173828,85956.0,85955.0,0.13152]
[1742483554111,0.1163855,85954.0,85953.0,0.13152]
[1742483554608,0.3143855,85954.0,85953.0,0.1163868]
[1742483555014,0.1163868,85953.0,85952.0,0.13152]
[1742483555315,0.1163868,85953.0,85952.0,0.2479082]
[1742483555514,0.3076868,85953.0,85952.0,0.2479082]
[1742483555719,0.1163963,85946.0,85945.0,0.00881862]
[1742483556520,0.4986963,85946.0,85945.0,0.00881862]
[1742483556814,0.49988961,85946.0,85945.0,0.32371622]
[1742483557114,0.51567082,85946.0,85945.0,0.32371622]
[1742483557413,0.51567082,85946.0,85945.0,0.21131862]
[1742483557825,0.51606838,85946.0,85945.0,0.32771622]
[1742483558114,0.01737208,85946.0,85945.0,0.32771622]
[1742483558507,0.00159087,85946.0,85945.0,0.32771622]
[1742483558908,0.1163828,85957.0,85956.0,0.1163828]
[1742483559105,0.1163841,85955.0,85954.0,0.13152]
[1742483559317,0.1163963,85947.0,85946.0,0.1163951]
[1742483559519,0.1163963,85946.0,85945.0,0.21131862]
[1742483559723,0.5140963,85946.0,85945.0,0.21131862]
[1742483559918,0.52987865,85946.0,85945.0,0.20931862]
[1742483560221,0.52987865,85946.0,85945.0,0.20731862]
[1742483560620,0.5140963,85946.0,85945.0,0.32371622]
[1742483560923,0.46788151,85971.0,85954.0,0.1745748]
[1742483561217,0.00017374,85962.0,85958.0,0.0581896]
[1742483561520,0.00017374,85962.0,85961.0,0.116376]
[1742483562131,0.11654834,85962.0,85961.0,0.303476]
[1742483562721,0.11654834,85962.0,85961.0,0.664276]
[1742483562927,0.20147374,85962.0,85961.0,0.303476]
[1742483563114,0.00017374,85962.0,85961.0,0.664276]
[1742483563524,4e-05,85968.0,85964.0,0.0581855]
[1742483563823,0.0581778,85976.0,85975.0,0.116357]
[1742483564026,0.0679015,85976.0,85975.0,0.116357]
[1742483564323,0.0097237,85976.0,85975.0,0.116357]
[1742483564520,0.27395069,85985.0,85979.0,0.0581758]
[1742483564719,0.2753507,85985.0,85984.0,0.4771449]
[1742483564919,0.28335887,85985.0,85984.0,0.61913059]
[1742483565422,0.10504,86000.0,85988.0,0.0581694]
[1742483565625,0.10504,86000.0,85999.0,0.1163246]
[1742483565816,8e-05,86008.0,86007.0,0.1163137]
[1742483566126,8e-05,86008.0,86007.0,0.6085937]
[1742483566317,1e-08,86015.0,86014.0,0.1163043]
[1742483566520,1e-08,86015.0,86014.0,0.4771043]
[1742483566521,0.2751771,86015.0,86014.0,0.4771043]
[1742483567617,0.2771771,86015.0,86014.0,0.4771043]
[1742483568326,0.3618,86053.0,86040.0,0.1162691]
[1742483568524,0.01056664,86055.0,86046.0,0.0581299]
[1742483568717,0.1743831,86052.0,86051.0,0.116253]
[1742483568913,0.1743831,86052.0,86051.0,0.3608]
[1742483569823,0.1162678,86041.0,86040.0,0.3608]
[1742483570020,0.0581298,86047.0,86040.0,0.3608]
[1742483570218,0.14267234,86769.0,86040.0,0.3608]
[1742483570219,0.3608,86083.0,86046.0,0.3608]
[1742483570423,0.1965,86076.0,86075.0,0.1162219]
[1742483570627,0.3618,86093.0,86073.0,0.19897897]
[1742483570829,0.3618,86093.0,86092.0,0.1161989]
[1742483571021,0.4658,86100.0,86084.0,0.1895046]
[1742483571323,0.07387191,86092.0,86084.0,0.008538]
[1742483571523,0.1162063,86087.0,86083.0,0.3608]
[1742483571729,0.0580998,86092.0,86083.0,0.3608]
[1742483571916,0.33487913,86091.0,86083.0,0.4770105]
[1742483572227,0.3608,86103.0,86083.0,0.36968713]
[1742483572417,0.21865429,86099.0,86083.0,0.36968713]
[1742483572618,0.01575429,86098.0,86088.0,0.058102]
[1742483572920,0.13136,86097.0,86083.0,0.36968713]
[1742483573224,0.1162097,86084.0,86083.0,0.3608]
[1742483574019,0.4171874,86084.0,86083.0,0.4770111]
[1742483574326,0.4012,86084.0,86083.0,0.4770111]
[1742483574724,0.5174097,86084.0,86083.0,0.36946361]
[1742483575418,0.5174097,86084.0,86083.0,0.48567461]
[1742483575717,0.4012,86084.0,86083.0,0.48567461]
[1742483576319,0.4012,86084.0,86083.0,0.36946361]
[1742483576320,0.5174097,86084.0,86083.0,0.36946361]
[1742483576520,0.5174097,86084.0,86083.0,0.48567471]
[1742483576722,0.5174097,86084.0,86083.0,0.36946361]
[1742483577033,0.5174097,86084.0,86083.0,0.3608]
[1742483577331,0.1162219,86075.0,86074.0,0.00017434]
[1742483577517,0.1162381,86064.0,86063.0,0.1162374]
[1742483577721,0.2485117,86074.0,86063.0,0.12485569]
[1742483578027,0.1904,86074.0,86073.0,0.1162246]
[1742483578321,0.1904,86074.0,86073.0,0.4770246]
[1742483578527,0.1904,86074.0,86073.0,0.6737246]
[1742483578724,0.00017361,86082.0,86081.0,0.1162137]
[1742483578925,0.1162232,86074.0,86073.0,0.7562]
[1742483579130,0.1162312,86069.0,86060.0,0.30480998]
[1742483579332,0.1162312,86069.0,86068.0,0.1162303]
[1742483579528,0.1162313,86068.0,86067.0,0.13128]
[1742483579924,0.0581155,86069.0,86052.0,0.12683031]
[1742483580126,0.116234,86066.0,86058.0,0.1162438]
[1742483580332,0.116234,86066.0,86064.0,0.1162362]
[1742483580529,0.3033327,86067.0,86066.0,0.0581166]
[1742483580829,0.1871,86067.0,86066.0,0.1893966]
[1742483581032,0.0581071,86081.0,86074.0,0.1162226]
[1742483581231,0.0581071,86081.0,86075.0,0.4770213]
[1742483581424,0.00017361,86082.0,86079.0,0.1162164]
[1742483581625,0.0581074,86081.0,86076.0,0.1878]
[1742483581826,0.0581074,86081.0,86069.0,0.24668948]
[1742483581827,0.01026403,86079.0,86073.0,0.3608]
[1742483582029,0.1162283,86071.0,86067.0,0.1878]
[1742483582329,0.1962,86070.0,86069.0,0.11623]
[1742483582535,0.058115,86069.0,86065.0,0.36097423]
[1742483582727,0.116234,86066.0,86065.0,0.36097423]
[1742483582929,0.12641198,86066.0,86065.0,0.36097423]
[1742483583327,0.2543162,86068.0,86065.0,0.36097423]
[1742483583328,0.1962,86068.0,86065.0,0.41909133]
[1742483583528,0.1962,86068.0,86067.0,0.1162327]
[1742483583728,0.20647162,86068.0,86067.0,0.1162327]
[1742483584041,0.2064711,86068.0,86067.0,0.1162327]
[1742483584227,0.2064711,86068.0,86067.0,0.5027327]
[1742483584839,4e-05,86073.0,86072.0,0.1162259]
[1742483585038,4e-05,86073.0,86072.0,0.4770259]
[1742483585235,4e-05,86073.0,86072.0,0.6083059]
[1742483585435,0.00017361,86082.0,86081.0,0.1162137]
[1742483585636,0.00017361,86082.0,86081.0,0.6082937]
[1742483586134,0.01045335,86082.0,86081.0,0.8068937]
[1742483586339,0.01045335,86082.0,86081.0,0.81728438]
[1742483587039,0.01045335,86082.0,86081.0,0.49208]
[1742483587235,0.14299698,86082.0,86081.0,0.49208]
[1742483587738,0.15334687,86082.0,86081.0,0.49208]
[1742483587937,0.1162246,86073.0,86070.0,0.13124]
[1742483588137,0.1162273,86071.0,86070.0,0.13124]
[1742483588442,0.14297495,86071.0,86070.0,0.13124]
[1742483588628,0.03709754,86071.0,86070.0,0.1162286]
[1742483588829,0.15332504,86071.0,86070.0,0.1162286]
[1742483589335,0.02185399,86071.0,86070.0,0.1162286]
[1742483589635,0.02185399,86071.0,86070.0,0.4770286]
[1742483590029,0.01034989,86071.0,86070.0,0.4770286]
[1742483591128,0.1162293,86070.0,86065.0,0.13141423]
[1742483591335,0.01034989,86071.0,86065.0,0.13141423]
[1742483591336,0.1881,86069.0,86065.0,0.13141423]
[1742483591533,0.116234,86066.0,86065.0,0.00017423]
[1742483591929,0.1881,86069.0,86066.0,0.1162339]
[1742483592141,0.1162331,86067.0,86065.0,0.11640923]
[1742483592342,0.21512728,86066.0,86065.0,0.11640923]
[1742483592538,0.21638635,86066.0,86065.0,0.11640923]
[1742483592934,0.21678573,86066.0,86065.0,0.11640923]
[1742483593443,0.02702728,86066.0,86065.0,0.11640923]
[1742483593635,0.02876794,86066.0,86065.0,0.11640923]
[1742483594230,4e-05,86070.0,86069.0,0.11623]
[1742483594536,4e-05,86070.0,86069.0,0.24747]
[1742483596033,0.00017361,86082.0,86081.0,0.1162137]
[1742483596238,0.00017361,86082.0,86081.0,0.58206262]
[1742483596835,0.00017361,86082.0,86081.0,0.78776262]
[1742483597444,0.1161856,86102.0,86089.0,0.116203]
[1742483597638,0.1913,86099.0,86089.0,0.608203]
[1742483597836,0.105,86100.0,86099.0,0.1161895]
[1742483598137,0.105,86100.0,86099.0,0.6081895]
[1742483598746,0.11681685,86100.0,86099.0,1.0020895]
[1742483599242,0.11681685,86100.0,86091.0,0.00017423]
[1742483599547,0.1161989,86092.0,86091.0,0.00017423]
[1742483599746,0.12801575,86092.0,86091.0,0.00017423]
[1742483599944,0.48881575,86092.0,86091.0,0.00017423]
[1742483600144,0.1162124,86082.0,86081.0,0.94972033]
[1742483600340,0.12802878,86082.0,86081.0,0.94972033]
[1742483600953,0.52342878,86082.0,86081.0,0.94972033]
[1742483601246,0.53290688,86082.0,86081.0,0.94972033]
[1742483601550,0.52342878,86082.0,86081.0,0.94972033]
[1742483601936,0.52342878,86082.0,86081.0,0.4328228]
[1742483602142,0.1162341,86066.0,86064.0,0.1162358]
[1742483602337,0.42041638,86065.0,86064.0,0.1162358]
[1742483602744,0.21731638,86065.0,86064.0,0.1162358]
[1742483602941,0.01437802,86094.0,86064.0,0.6361]
[1742483603140,0.1972,86086.0,86085.0,0.1162083]
[1742483603352,0.1972,86086.0,86085.0,0.4770083]
[1742483603950,0.1972,86086.0,86085.0,0.8831083]
[1742483604147,4e-05,86102.0,86089.0,0.116203]
[1742483604449,0.4003,86099.0,86089.0,0.247363]
[1742483604644,0.5164898,86099.0,86089.0,0.247363]
[1742483604849,0.0580989,86093.0,86089.0,0.13116]
[1742483605057,0.3978,86092.0,86089.0,0.247363]
[1742483605240,0.4558997,86092.0,86089.0,0.52066]
[1742483605443,0.1162097,86084.0,86083.0,0.3608]
[1742483605944,0.1162209,86076.0,86071.0,0.1865]
[1742483606144,0.3909,86075.0,86073.0,0.1162233]
[1742483606342,0.3909,86075.0,86071.0,0.2446133]
[1742483606343,0.3909,86075.0,86074.0,0.1865]
[1742483606538,0.51648725,86075.0,86071.0,0.0581133]
[1742483606749,0.40026505,86075.0,86073.0,0.1162239]
[1742483606949,0.51648785,86075.0,86073.0,0.1162238]
[1742483607249,0.12558825,86074.0,86073.0,0.1162238]
[1742483607452,0.00936505,86074.0,86073.0,0.1162238]
[1742483607639,0.19966505,86074.0,86073.0,0.1162238]
[1742483608846,0.19966505,86074.0,86073.0,0.5146238]
[1742483609448,0.1162246,86073.0,86072.0,0.34747962]
[1742483609648,0.6661246,86073.0,86072.0,0.34747962]
[1742483610047,0.8656246,86073.0,86072.0,0.34747962]
[1742483610251,0.86723799,86073.0,86072.0,0.34747962]
[1742483610456,0.86723799,86073.0,86072.0,0.46370552]
[1742483610457,0.39959991,86073.0,86072.0,0.46370552]
[1742483610853,0.21049991,86073.0,86072.0,0.59486552]
[1742483611353,0.32672451,86073.0,86072.0,0.47863962]
[1742483611560,0.32672451,86073.0,86072.0,0.34747962]
[1742483611950,0.52772451,86073.0,86072.0,0.34747962]
[1742483612749,0.52772451,86073.0,86068.0,0.00017423]
[1742483612750,0.0581143,86071.0,86070.0,0.27802554]
[1742483612949,0.0696947,86071.0,86070.0,0.27802554]
[1742483613162,0.46670809,86071.0,86070.0,0.39425414]
[1742483613350,0.52482109,86071.0,86070.0,0.39425414]
[1742483613551,0.40859379,86071.0,86070.0,0.39425414]
[1742483613752,0.40859379,86071.0,86070.0,0.75505414]
[1742483614261,0.00161339,86071.0,86070.0,0.75505414]
[1742483614557,0.00161339,86071.0,86070.0,1.13595414]
[1742483615553,0.00161339,86071.0,86070.0,0.82922554]
[1742483615755,0.11784069,86071.0,86070.0,0.27802554]
[1742483616054,0.52384069,86071.0,86070.0,0.27802554]
[1742483616863,0.53535893,86071.0,86070.0,0.27802554]
[1742483617267,0.52384069,86071.0,86070.0,0.27802554]
[1742483617560,0.40761339,86071.0,86070.0,0.39425414]
[1742483617763,0.52384069,86071.0,86070.0,0.39425414]
[1742483617952,0.40761339,86071.0,86070.0,0.39425414]
[1742483618154,0.00161339,86071.0,86070.0,0.92767414]
[1742483618355,4e-05,86079.0,86078.0,0.1162178]
[1742483618657,0.00017423,86090.0,86078.0,0.1162178]
[1742483618658,0.00017423,86090.0,86078.0,0.6081378]
[1742483618853,0.00017423,86090.0,86079.0,1.5]
[1742483619061,0.1162151,86080.0,86079.0,1.5]
[1742483619363,0.1162129,86082.0,86081.0,0.1162131]
[1742483619557,0.1162151,86080.0,86079.0,0.4514362]